Cogmind - Beta 9.4 @@@ ROGUE MODE // 2020.01.28 @ 14:56:08 Player: mr roboto Result: Destroyed by G-47 Trooper with Particle Gun Performance ------------- Evolutions (0) 0 Regions Visited (2) 400 Robots Destroyed (17) 85 Value Destroyed (370) 370 Prototype IDs (0) 0 Alien Tech Used (0) 0 Bonus (0) 0 TOTAL SCORE: 855 Bonus ------- None Cogmind --------- Core Integrity 0/250 Matter 290/300 Energy 177/265 System Corruption 0% Temperature Cool (477) Movement Walking (120) Location -10/Mines Parts ------- > --- POWER (1) -------- Improved Ion Engine > --- PROPULSION (2) --- Aluminum Leg Carbon-fiber Leg > --- UTILITY (2) ------ Small Storage Unit Targeting Computer > --- WEAPON (2) ------- EM Pulse Gun Particle Gun > --- INVENTORY (6) ---- Light Ion Engine Structural Scanner Light Armor Plating EM Pulse Gun Light Assault Rifle Light Assault Rifle Peak State ------------ > --- POWER ------------ Improved Ion Engine > --- PROPULSION ------- Carbon-fiber Leg > --- UTILITY ---------- Improved Heat Sink Small Storage Unit > --- WEAPON ----------- Small Laser Beam Cannon > --- INVENTORY -------- Aluminum Leg Structural Scanner Light Armor Plating EM Pulse Gun Light Assault Rifle Datajack [Rating: 11] Favorites ----------- Power Light Ion Engine Engine Light Ion Engine Propulsion Aluminum Leg Leg Aluminum Leg Utility Small Storage Unit Device Structural Scanner Storage Small Storage Unit Processor Targeting Computer Protection Weapon Shielding Weapon Beam Cannon Energy Gun Particle Gun Energy Cannon Beam Cannon Ballistic Gun Assault Rifle Special Weapon Mining Laser Special Melee Weapon Datajack Build | -11 -10 -10 ------- Run | Scr Mat Min Slots Evolved . | . . . Power . | . . . Propulsion . | . . . Utility . | . . . Weapon . | . . . Parts Attached 26 | 6 6 14 Power 4 | 1 1 2 Engine 4 | 1 1 2 Core . | . . . Reactor . | . . . Propulsion 6 | 2 2 2 Treads . | . . . Leg 6 | 2 2 2 Wheel . | . . . Hover . | . . . Flight . | . . . Utility 5 | 1 2 2 Device 2 | . 1 1 Storage 1 | 1 . . Processor 1 | . . 1 Hackware . | . . . Protection 1 | . 1 . Artifact . | . . . Weapon 11 | 2 1 8 Energy Gun 4 | . . 4 Energy Cannon 1 | . . 1 Ballistic Gun 4 | 2 1 1 Ballistic Cannon . | . . . Launcher . | . . . Special Weapon 1 | . . 1 Impact Weapon . | . . . Slashing Weapon . | . . . Piercing Weapon . | . . . Special Melee Weapon 1 | . . 1 Unidentified Prototypes . | . . . Parts Lost 9 | . . 9 Power 1 | . . 1 Propulsion 2 | . . 2 Utility 1 | . . 1 Weapon 5 | . . 5 Highest Loss Streak 5 | . . 5 Average Slot Usage (%) 75 | . 99 66 Engine 13 | . 14 13 Leg 11 | . 28 5 Device 1 | . 6 . Storage 14 | . 14 14 Processor 1 | . . 2 Protection 3 | . 6 2 Energy Gun 4 | . . 5 Energy Cannon 7 | . . 10 Ballistic Gun 8 | . 28 1 Special Weapon 1 | . . 2 Special Melee Weapon 6 | . . 8 Naked Turns . | . . . Heaviest Build 17 | 10 14 17 Greatest Support 25 | 20 20 25 Greatest Overweight (x) 3 | . . 3 Average Overweight (x) 1 | . . 2 Largest Inventory Capacity 6 | 6 6 6 Average Capacity 5 | 5 6 6 Most Carried 6 | 5 6 6 Average Carried 5 | 2 5 5 Final Capacity 6 | 6 6 6 Final Carried 6 | 2 6 6 Class Distribution -------------------- 100% | Mutant Dominant Class ---------------- Mutant | -10/Materials Mutant | -10/Mines Resources | -11 -10 -10 ----------- Run | Scr Mat Min Matter Collected 607 | 178 200 229 Remotely . | . . . Salvage Created 425 | . 194 231 Parts 27 | . 13 14 Haulers Intercepted . | . . . Recyclers Shooed 1 | . 1 . Parts Field Recycled . | . . . Retrieved Matter . | . . . Parts Self-Destructed . | . . . Prevented . | . . . Kills | -11 -10 -10 ------- Run | Scr Mat Min Combat Hostiles Destroyed 15 | . 6 9 Guns 11 | . 6 5 Cannons 4 | . . 4 Classes Destroyed 5 | . 3 2 Worker 1 | . 1 . Recycler 1 | . . 1 Swarmer 8 | . 3 5 Grunt 6 | . 3 3 Demolisher 1 | . . 1 Best Kill Streak 5 | . 2 5 Combat Bots Only 5 | . 2 5 Max Kills in Single Turn 1 | . 1 1 Gunslinging . | . . . Exploded . | . . . Melee . | . . . Uniques/NPCs Destroyed . | . . . Combat | -11 -10 -10 -------- Run | Scr Mat Min Damage Taken 1281 | . 385 896 Core 263 | . 51 212 Absorbed by Shields . | . . . Core Remaining (%) 100 | 100 . . Volleys Fired 73 | . 36 37 Largest 2 | . 2 2 Hottest 165 | . 40 165 Shots Fired 134 | . 72 62 Gun 116 | . 72 44 Cannon 10 | . . 10 Launcher . | . . . Special 8 | . . 8 Kinetic 79 | . 72 7 Thermal 39 | . . 39 Explosive . | . . . Electromagnetic 16 | . . 16 Robot Hit Streak 8 | . 7 8 Robot Miss Streak 5 | . 5 5 Penetration Max . | . . . Secondary Targets . | . . . Shots Hit Robots 84 | . 43 41 Core Hits 28 | . 13 15 Critical Hits 1 | . 1 . Critical Kills . | . . . Critical Parts Destroyed 1 | . 1 . Melee Attacks 5 | . . 5 Impact . | . . . Slashing . | . . . Piercing . | . . . Sneak Attacks 5 | . . 5 Combat Hostiles . | . . . Follow-up Attacks . | . . . Damage Inflicted 1114 | . 475 639 Guns 872 | . 475 397 Cannons 122 | . . 122 Explosions . | . . . Melee . | . . . Ramming . | . . . Kinetic 535 | . 475 60 Thermal 428 | . . 428 Explosive . | . . . Electromagnetic 151 | . . 151 Impact . | . . . Slashing . | . . . Piercing . | . . . Highest Corruption . | . . . Average Corruption . | . . . Corruption Purged . | . . . Overload Shots . | . . . Overflow Damage 17 | . . 17 Projectiles 17 | . . 17 Explosions . | . . . Melee . | . . . Knockbacks . | . . . Impact . | . . . Kinetic . | . . . Secondary . | . . . Self-Inflicted Damage . | . . . Shots . | . . . Rammed . | . . . Targets Rammed . | . . . Kicked . | . . . Crushed . | . . . Highest Temperature 468 | . 6 468 Average Temperature 164 | . 3 174 Received Heat Transfer 228 | . 132 96 Effects 3 | . . 3 Energy Bleed 2 | . . 2 Interference 1 | . . 1 Siege Activations . | . . . Robots Corrupted . | . . . Combat Hostiles . | . . . Parts Fried . | . . . Impact Corruptions . | . . . Robots Melted . | . . . Combat Hostiles . | . . . Parts Melted . | . . . Heat Transferred 953 | . . 953 Parts Sabotaged . | . . . Parts Stolen . | . . . Parts Stripped . | . . . Power Chain Reactions . | . . . Missiles Intercepted . | . . . Alert | -11 -10 -10 ------- Run | Scr Mat Min Peak Influence 215 | . 215 118 Average Influence 56 | . 114 39 Maximum Alert Level 1 | . 1 . Low Security (%) 90 | 100 64 100 Level 1 9 | . 35 . Level 2 . | . . . Level 3 . | . . . Level 4 . | . . . Level 5 . | . . . High Security . | . . . Max Security . | . . . Squads Dispatched 2 | . 2 . Investigation . | . . . Extermination . | . . . Reinforcement 2 | . 2 . Assault . | . . . Garrison . | . . . Intercept . | . . . Construction Impeded . | . . . Haulers Reinforced . | . . . Stealth | -11 -10 -10 --------- Run | Scr Mat Min Distress Signals . | . . . Communications Jammed . | . . . Distress Signals . | . . . Times Spotted 45 | . 11 34 Peak Tracking Total 16 | . 4 16 Tactical Retreats 3 | . 1 2 Traps | -11 -10 -10 ------- Run | Scr Mat Min Traps Triggered . | . . . Indirectly . | . . . Trap Hack Attempts . | . . . Triggered . | . . . Disarmed . | . . . Reprogrammed . | . . . Reused . | . . . Traps Extracted . | . . . Installed . | . . . Triggered . | . . . Machines | -11 -10 -10 ---------- Run | Scr Mat Min Machines Disabled . | . . . Max in Single Turn . | . . . Machines Sabotaged . | . . . Garrisons Compromised . | . . . Overloaded Fab Kills . | . . . Fab Network Shutdowns . | . . . Hacking | -11 -10 -10 --------- Run | Scr Mat Min Machines Accessed . | . . . Terminals . | . . . Fabricators . | . . . Repair Stations . | . . . Recycling Units . | . . . Scanalyzers . | . . . Garrison Access . | . . . Total Hacks . | . . . Successful . | . . . Failed . | . . . Catastrophic . | . . . Database Lockouts . | . . . Manual . | . . . Terminals . | . . . Fabricators . | . . . Repair Stations . | . . . Recycling Units . | . . . Scanalyzers . | . . . Garrison Access . | . . . Terminal Hacks . | . . . Fabricator Hacks . | . . . Repair Station Hacks . | . . . Recycling Unit Hacks . | . . . Scanalyzer . | . . . Garrison Access Hacks . | . . . Unauthorized Hacks . | . . . Terminals . | . . . Fabricators . | . . . Repair Stations . | . . . Recycling Units . | . . . Scanalyzers . | . . . Garrison Access . | . . . Data Cores Recovered . | . . . Used . | . . . Hacking Detections . | . . . Full Trace Events . | . . . Feedback Events . | . . . Feedback Blocked . | . . . Robot Schematics Acquired . | . . . Robots Built . | . . . Matter . | . . . Time . | . . . Total Robot Build Rating . | . . . Part Schematics Acquired . | . . . Parts Built . | . . . Matter . | . . . Time . | . . . Total Part Build Rating . | . . . Parts Repaired . | . . . Time . | . . . Parts Recycled . | . . . Recycled Matter . | . . . Retrieved Matter . | . . . Retrieved Components . | . . . Parts Scanalyzed . | . . . Part Schematics Acquired . | . . . Parts Damaged . | . . . Bothacking | -11 -10 -10 ------------ Run | Scr Mat Min Used RIF Installer . | . . . Robots Hacked 2 | . . 2 Non-combat 2 | . . 2 Combat . | . . . Robot Hacks Applied 2 | . . 2 no_distress 2 | . . 2 Relay Couplers Released . | . . . Robots Rewired . | . . . Allies Hacked . | . . . Hacks Repelled . | . . . Allies | -11 -10 -10 -------- Run | Scr Mat Min Total Allies 2 | . . 2 Largest Group 2 | . . 2 Highest-Rated Group 53 | . . 53 Highest-Rated Ally 31 | . . 31 Total Orders . | . . . Ally Attacks 4 | . . 4 Total Damage 61 | . . 61 Kills . | . . . Allies Corrupted . | . . . Allies Melted . | . . . Intel | -11 -10 -10 ------- Run | Scr Mat Min Robot Analysis Total . | . . . Derelict Logs Recovered 3 | . . 3 Drone Launches . | . . . Drone Recoveries . | . . . Exploration | -11 -10 -10 ------------- Run | Scr Mat Min Turns Passed 1463 | 67 378 1018 Spaces Moved 756 | 54 216 486 Core 336 | 14 . 322 Treads . | . . . Legs 420 | 40 216 164 Wheels . | . . . Hover . | . . . Flight . | . . . Fastest Speed 50 | 50 120 120 Average Speed 156 | 101 120 179 Slowest Speed 200 | 120 120 200 Overloaded Moves . | . . . Propulsion Burnouts . | . . . Robots Hopped . | . . . Cave-ins Triggered . | . . . Exploration Rate (%) 41 | 3 35 87 Regions Visited 2 Branch Regions 1 Pre-discovered Areas . | . . . Known Exits Taken . | . . . Unknown Exits Taken 2 | 1 1 . Scrap Searched 1 | . . 1 Spaces Dug . | . . . Terrain Destroyed 2 | . . 2 Melee . | . . . Projectile 2 | . . 2 AOE . | . . . Actions | -11 -10 -10 --------- Run | Scr Mat Min Total 882 | 64 267 551 Wait . | . . . Move 754 | 53 215 486 Hop . | . . . Pick Up 17 | 5 7 5 Fast Attach 9 | 3 . 6 Attach 8 | 3 1 4 Detach . | . . . Swap 9 | . 5 4 Drop 7 | . 3 4 Fire 73 | . 36 37 Melee 5 | . . 5 Ram . | . . . Kick . | . . . Crush . | . . . Escape Stasis . | . . . Rewire . | . . . Trap . | . . . Miscellaneous . | . . . Route ------- -11/Scrapyard -10/Materials -10/Mines (discovered 2 exits: *Mat x2) History --------- Turn | Location | Event 15 | -11/Scrapyard | Discovered new exit (range 15) 68 | -11/Scrapyard | Entered Materials 307 | -10/Materials | Build established: Mutant 415 | -10/Materials | Discovered new exit (range 13) 446 | -10/Materials | Entered Mines 447 | -10/Mines | Assembled infested the area 449 | -10/Mines | Identified exit to Materials 461 | -10/Mines | Met 8R-AWN 498 | -10/Mines | Lost 3 parts (1n2w) 528 | -10/Mines | Learned Materials terminal intel 617 | -10/Mines | Core integrity fell below 50% 657 | -10/Mines | Lost 5 parts (1p1n1u2w) 1078 | -10/Mines | Discovered exit to Materials (range 13) 1270 | -10/Mines | Learned Materials security intel 1282 | -10/Mines | Joined a pair of Derelicts in attacking an 0b10 outpost 1436 | -10/Mines | Core integrity fell below 20% 1464 | -10/Mines | Destroyed by G-47 Trooper with Particle Gun Last Messages --------------- 01368_ S-10 Pest destroyed. 01368_ R-06 Scavenger collects Flight Unit. 01372_ Beam Cannon destroyed. 01374_ S-10 Pest destroyed. 01380_ R-06 Scavenger destroyed. 01385_ Acquired Particle Gun. 01388_ Dropped Datajack. 01389_ Acquired Lgt. Ion Engine. 01390_ Acquired 10 matter. 01394_ R-06 Scavenger collects Lgt. Assault Rifle. 01397_ Acquired Lgt. Assault Rifle. 01397_ R-06 Scavenger collects Com. Wheel. 01401_ R-06 Scavenger collects Datajack. 01404_ R-06 Scavenger collects Flight Unit. 01445_ Destroyed Sml. Laser. 01452_ G-34 Mercenary destroyed. 01455_ U-05 Engineer lays Concrete. 01458_ Overheating: Energy bleed (-53). 01460_ Overheating: Energy bleed (-29). [Achievement: First Step to Greatness] Map ----- +----------------------------------------------------+ | | | | | | | ???????????????????????????????????????????? | | ???????????????????????????????????????????? | | ???????????????????????????????????????????? | | ??????#########????????????????????????????? | | #?????# #????????????????????????????? | | ##????# """ #????????????????????????????? | | ######=""" #????????????????????????????? | | ## *=%""" #??????????????# ????????????? | | ### % #####????????## ?????????? | | #?# ##% #???###### ???????? | | ### ## ## #??## ### ? ???????? | | ##= ## #??# "????????? | | ###### #### #??# % ?????????? | | #### #????# #### ##?# # #?????????? | | ???# #????# ### # ##????????? | | ???# #????# #### # # #????????? | | ???# #????# #?# ## # # #????????? | | ??? #????# #?# ### # ## #?????????? | | ???###????# #?# ### #??#???????? | | ??????????# ### ##g# ## ##??????? | | ??????????# ## ### #??????? | | ??????????# #??????? | | ??????????# u =%@ #???????? | | ??????????### ### #???????? | | #???????????## # #% #???????? | | ?????????????## ### # ## ##???????? | | ??????????????##### #### #????????? | | ??????????????????# #??# #### #????????? | | ??????????????????# #??# #??? < #????????? | | ??????????????????# #??# #???? ##????????? | | ??????############# #??# ???? ##?????????? | | ?????## #??# ????#??????????? | | ????## ## #######?? ???????????????? | | ##### # ## ###?????? ??????????????? | | # ## ## #?????? ??????????????? | | ## #### #??????# ?????????????? | | ### #??# #???????# ? ?????????????? | | ####?# #??# #????????# ????????????????? | | #?????# #??# #?????????#??????????####??? | | #????### #??# ##??????????????????## ##?? | | #????## ##?# ####????????????????# #?? | | ?????# ### #???????????###### #?? | | ###### ## ## #?????####### ## #??? | | ## ## #??#### ## #???? | | ## ## #?## #???? | | ####### ## ### #???? | | #????## ##### ### #???? | +----------------------------------------------------+ Best States ------------- Heat Dissipation 39 Energy Generation 12 Energy Capacity 265 Matter Stores 300 Matter Capacity 300 Sight Range 16 Terrain Scan Density 10 Weapon Shielding 33 Evasion (%) 50 Targeting Accuracy 5 Item Schematics ----------------- None Robot Schematics ------------------ None Fabricated ------------ Nothing Alien Tech Used ----------------- None Achievements -------------- First Step to Greatness Challenges ------------ None Game ------ Seed GaussHypervelocitySink Manual? 0 Play Time 00:18:04 Cumulative 3.1 hours Start 2020.01.28 @ 14:42:51 End 2020.01.28 @ 14:56:08 Sessions 1 Manual Loads 0 Difficulty Rogue Special Mode None Game No. 29 Rogue 29 Adventurer 0 Explorer 0 Win Type - Total 0 Types 0/0/0/0/0/0/0 Lore% 1 Gallery% 12 Achievement% 3 Wizard Run 0 Options --------- ASCII 0 Keyboard 0 Movement Arrows Keybinds 0 Fullscreen 1 Font 18/SmallcapsGlow Map View 76x50 Tactical HUD 1 Map Filters NONE Filters NONE Steam 1 RUN: 4263542f-3859-4fee-950e-786b35e0ff22